[Event "Late-Titled-Tuesday-Blitz-February-27-2024"]
[Site "Chess.com"]
[Date "2024.02.27"]
[Round "7"]
[White "jefferyx"]
[Black "Beca95"]
[Result "1/2-1/2"]
[WhiteElo "3079"]
[BlackElo "2945"]
[TimeControl "180+1"]
[EndTime "15:14:33 PST"]
[Termination "Game drawn by repetition"]

1. e4 {[%clk 0:03:00.9]} 1... c5 {[%clk 0:03:00.2]} 2. Nf3 {[%clk 0:03:01.3]}
2... d6 {[%clk 0:03:00.6]} 3. Nc3 {[%clk 0:03:01.9]} 3... Nf6 {[%clk 0:03:00.2]}
4. d4 {[%clk 0:03:02.4]} 4... cxd4 {[%clk 0:02:59.9]} 5. Qxd4 {[%clk 0:03:03.3]}
5... a6 {[%clk 0:02:58.6]} 6. Nd5 {[%clk 0:03:03.6]} 6... e5 {[%clk 0:02:48.6]}
7. Nxf6+ {[%clk 0:02:29.8]} 7... Qxf6 {[%clk 0:02:47.6]} 8. Qc3 {[%clk
0:02:30.5]} 8... Nc6 {[%clk 0:02:46.7]} 9. Bc4 {[%clk 0:02:29.8]} 9... h6 {[%clk
0:02:45.9]} 10. O-O {[%clk 0:02:27.7]} 10... Be7 {[%clk 0:02:43.4]} 11. Bd5
{[%clk 0:02:27.7]} 11... Bd7 {[%clk 0:02:43.1]} 12. Nd2 {[%clk 0:02:24.1]} 12...
O-O {[%clk 0:02:38.8]} 13. Nc4 {[%clk 0:02:24.5]} 13... Nd4 {[%clk 0:02:02.4]}
14. Qd2 {[%clk 0:02:18.3]} 14... Bc6 {[%clk 0:02:01.7]} 15. Ne3 {[%clk
0:02:14.4]} 15... Qg6 {[%clk 0:01:57.7]} 16. Qd3 {[%clk 0:02:14.3]} 16... Bg5
{[%clk 0:01:53.8]} 17. c3 {[%clk 0:02:14.3]} 17... Bb5 {[%clk 0:01:37.3]} 18.
Nc4 {[%clk 0:02:09.1]} 18... Bxc1 {[%clk 0:01:28.5]} 19. Rfxc1 {[%clk
0:01:56.8]} 19... Ne6 {[%clk 0:01:28.2]} 20. Qg3 {[%clk 0:01:56.6]} 20... Bxc4
{[%clk 0:01:18.3]} 21. Qxg6 {[%clk 0:01:54.6]} 21... fxg6 {[%clk 0:01:18.2]} 22.
Bxc4 {[%clk 0:01:55.2]} 22... Kf7 {[%clk 0:01:18.6]} 23. a4 {[%clk 0:01:53.5]}
23... Ke7 {[%clk 0:01:18.7]} 24. f3 {[%clk 0:01:46.4]} 24... Rac8 {[%clk
0:01:18.5]} 25. Bd5 {[%clk 0:01:44.2]} 25... Rc7 {[%clk 0:01:18.7]} 26. Kf2
{[%clk 0:01:43.8]} 26... Nf4 {[%clk 0:01:18.2]} 27. Rd1 {[%clk 0:01:44]} 27...
Rc5 {[%clk 0:01:13.9]} 28. Bb3 {[%clk 0:01:37]} 28... b6 {[%clk 0:01:08.4]} 29.
g3 {[%clk 0:01:35.8]} 29... Nh5 {[%clk 0:01:06.6]} 30. Rd3 {[%clk 0:01:33.3]}
30... Nf6 {[%clk 0:01:06.2]} 31. Ke2 {[%clk 0:01:33.5]} 31... g5 {[%clk
0:01:06.2]} 32. Rad1 {[%clk 0:01:31.5]} 32... Rc6 {[%clk 0:01:06.1]} 33. Bd5
{[%clk 0:01:31.2]} 33... Rc7 {[%clk 0:01:05.8]} 34. Ba2 {[%clk 0:01:29.3]} 34...
Rc6 {[%clk 0:01:05.9]} 35. Bd5 {[%clk 0:01:28.4]} 35... Rc7 {[%clk 0:01:06.3]}
36. Ba2 {[%clk 0:01:26.7]} 36... Rc6 {[%clk 0:01:06.6]} 37. Bd5 {[%clk
0:01:03.4]} 1/2-1/2

[Event "Late-Titled-Tuesday-Blitz-February-27-2024"]
[Site "Chess.com"]
[Date "2024.02.27"]
[Round "7"]
[White "Peroncio"]
[Black "GoValya"]
[Result "1-0"]
[WhiteElo "2438"]
[BlackElo "2252"]
[TimeControl "180+1"]
[EndTime "15:14:41 PST"]
[Termination "Peroncio won by resignation"]

1. e4 {[%clk 0:03:00.9]} 1... e6 {[%clk 0:02:59.6]} 2. d4 {[%clk 0:03:00.1]}
2... d5 {[%clk 0:02:59.6]} 3. Bd3 {[%clk 0:03:00.9]} 3... c5 {[%clk 0:02:58.8]}
4. exd5 {[%clk 0:03:01]} 4... exd5 {[%clk 0:02:58.5]} 5. Nf3 {[%clk 0:03:00.1]}
5... c4 {[%clk 0:02:58.5]} 6. Be2 {[%clk 0:03:00.3]} 6... Nf6 {[%clk 0:02:58.6]}
7. b3 {[%clk 0:03:00.9]} 7... cxb3 {[%clk 0:02:57.9]} 8. axb3 {[%clk 0:03:01.8]}
8... h6 {[%clk 0:02:57.8]} 9. O-O {[%clk 0:03:02.4]} 9... Be7 {[%clk 0:02:55.7]}
10. c4 {[%clk 0:03:02]} 10... O-O {[%clk 0:02:55.1]} 11. Re1 {[%clk 0:03:01.4]}
11... Nc6 {[%clk 0:02:52.9]} 12. Nc3 {[%clk 0:02:59.9]} 12... Bb4 {[%clk
0:02:38]} 13. Bd2 {[%clk 0:02:58.8]} 13... Bxc3 {[%clk 0:02:34.1]} 14. Bxc3
{[%clk 0:02:58.6]} 14... Ne4 {[%clk 0:02:34.1]} 15. Bb2 {[%clk 0:02:55.5]} 15...
Bf5 {[%clk 0:02:20.2]} 16. cxd5 {[%clk 0:02:51.3]} 16... Nb4 {[%clk 0:02:20.1]}
17. Bc4 {[%clk 0:02:44]} 17... Nxd5 {[%clk 0:02:04.2]} 18. Ne5 {[%clk
0:02:42.6]} 18... Nec3 {[%clk 0:01:25.1]} 19. Qf3 {[%clk 0:02:36.9]} 19... Be4
{[%clk 0:00:55.5]} 20. Qg3 {[%clk 0:02:22]} 20... f6 {[%clk 0:00:43.2]} 21. Bxc3
{[%clk 0:02:18.2]} 21... fxe5 {[%clk 0:00:28.8]} 22. Rxe4 {[%clk 0:02:17.8]}
22... Kh8 {[%clk 0:00:21.9]} 23. Rxe5 {[%clk 0:02:06.5]} 23... Nf4 {[%clk
0:00:16.6]} 24. d5 {[%clk 0:02:00.3]} 24... Rc8 {[%clk 0:00:16.2]} 25. Rf5
{[%clk 0:01:39.5]} 1-0

[Event "Late-Titled-Tuesday-Blitz-February-27-2024"]
[Site "Chess.com"]
[Date "2024.02.27"]
[Round "7"]
[White "Binary010"]
[Black "DefiantChair"]
[Result "0-1"]
[WhiteElo "2808"]
[BlackElo "2669"]
[TimeControl "180+1"]
[EndTime "15:14:47 PST"]
[Termination "DefiantChair won by resignation"]

1. e4 {[%clk 0:03:00.9]} 1... c5 {[%clk 0:02:43.4]} 2. Nf3 {[%clk 0:03:00.7]}
2... d6 {[%clk 0:02:41.8]} 3. d4 {[%clk 0:02:59.1]} 3... cxd4 {[%clk 0:02:42.7]}
4. Nxd4 {[%clk 0:02:59.8]} 4... Nf6 {[%clk 0:02:43.3]} 5. Nc3 {[%clk 0:03:00.4]}
5... a6 {[%clk 0:02:43.3]} 6. Rg1 {[%clk 0:03:00.6]} 6... e5 {[%clk 0:02:42.3]}
7. Nb3 {[%clk 0:03:00.8]} 7... Be6 {[%clk 0:02:42]} 8. g4 {[%clk 0:03:00.7]}
8... d5 {[%clk 0:02:42.4]} 9. exd5 {[%clk 0:03:00.8]} 9... Nxd5 {[%clk
0:02:43.3]} 10. Nxd5 {[%clk 0:03:01]} 10... Qxd5 {[%clk 0:02:44.2]} 11. Qxd5
{[%clk 0:03:01.1]} 11... Bxd5 {[%clk 0:02:45.1]} 12. Be3 {[%clk 0:03:01.4]}
12... Nc6 {[%clk 0:02:42.2]} 13. c3 {[%clk 0:03:01.3]} 13... O-O-O {[%clk
0:02:38.1]} 14. Nd2 {[%clk 0:03:00.7]} 14... Be6 {[%clk 0:02:35.6]} 15. Bc4
{[%clk 0:02:50.6]} 15... Bxc4 {[%clk 0:02:30.3]} 16. Nxc4 {[%clk 0:02:51.5]}
16... f6 {[%clk 0:02:30.7]} 17. a4 {[%clk 0:02:49]} 17... Bd6 {[%clk 0:02:28.1]}
18. Ke2 {[%clk 0:02:44.8]} 18... Bc7 {[%clk 0:02:28]} 19. b4 {[%clk 0:02:43.4]}
19... Rd5 {[%clk 0:02:10.9]} 20. Nb6+ {[%clk 0:02:16.8]} 20... Bxb6 {[%clk
0:02:09.8]} 21. Bxb6 {[%clk 0:02:17.7]} 21... Kd7 {[%clk 0:02:03.9]} 22. Rgd1
{[%clk 0:01:37.8]} 22... Ke6 {[%clk 0:02:02.7]} 23. b5 {[%clk 0:01:33.4]} 23...
Ne7 {[%clk 0:02:00.3]} 24. c4 {[%clk 0:01:31.6]} 24... Rxd1 {[%clk 0:01:57.5]}
25. Rxd1 {[%clk 0:01:32.5]} 25... Rc8 {[%clk 0:01:55.4]} 26. c5 {[%clk 0:01:20]}
26... Nd5 {[%clk 0:01:48.7]} 27. bxa6 {[%clk 0:01:03.6]} 27... bxa6 {[%clk
0:01:44.3]} 28. Rd3 {[%clk 0:00:51.4]} 28... Nf4+ {[%clk 0:01:44]} 29. Ke3
{[%clk 0:00:51.6]} 29... Nxd3 {[%clk 0:01:44.9]} 30. Kxd3 {[%clk 0:00:52.3]}
30... Kd5 {[%clk 0:01:45.3]} 31. a5 {[%clk 0:00:51.9]} 31... g6 {[%clk
0:01:40.3]} 32. Ke3 {[%clk 0:00:50.3]} 32... f5 {[%clk 0:01:40.4]} 33. gxf5
{[%clk 0:00:48.3]} 33... gxf5 {[%clk 0:01:41.3]} 34. f3 {[%clk 0:00:48.8]} 34...
Rg8 {[%clk 0:01:32.4]} 35. Bc7 {[%clk 0:00:47.1]} 35... Rg2 {[%clk 0:01:30.3]}
36. h3 {[%clk 0:00:45.8]} 36... f4+ {[%clk 0:01:29.3]} 37. Kd3 {[%clk
0:00:45.8]} 37... Rg3 {[%clk 0:01:29.6]} 38. Ke2 {[%clk 0:00:45.9]} 38... Rxh3
{[%clk 0:01:29.6]} 39. c6 {[%clk 0:00:46.3]} 39... Rh6 {[%clk 0:01:27.9]} 0-1

[Event "Late-Titled-Tuesday-Blitz-February-27-2024"]
[Site "Chess.com"]
[Date "2024.02.27"]
[Round "7"]
[White "Bkmzzzzz"]
[Black "bazar-wokzal"]
[Result "0-1"]
[WhiteElo "2403"]
[BlackElo "2610"]
[TimeControl "180+1"]
[EndTime "15:14:48 PST"]
[Termination "bazar-wokzal won by resignation"]

1. e4 {[%clk 0:02:53.1]} 1... Nc6 {[%clk 0:02:59.6]} 2. Nc3 {[%clk 0:02:48.1]}
2... Nf6 {[%clk 0:02:59.2]} 3. Nf3 {[%clk 0:02:48]} 3... d5 {[%clk 0:02:58.1]}
4. e5 {[%clk 0:02:35.7]} 4... Ne4 {[%clk 0:02:56.5]} 5. d4 {[%clk 0:02:30]} 5...
Bg4 {[%clk 0:02:55.3]} 6. Be2 {[%clk 0:02:24]} 6... e6 {[%clk 0:02:53.3]} 7. Be3
{[%clk 0:02:14.7]} 7... Bb4 {[%clk 0:02:51.9]} 8. Qd3 {[%clk 0:02:08.7]} 8...
Bf5 {[%clk 0:02:46.2]} 9. Qb5 {[%clk 0:01:35.9]} 9... Nxc3 {[%clk 0:02:38.5]}
10. Qxb7 {[%clk 0:00:59.7]} 10... Nxe2+ {[%clk 0:02:10.6]} 11. Kxe2 {[%clk
0:01:00.6]} 11... Kd7 {[%clk 0:02:09.7]} 12. c3 {[%clk 0:00:57]} 12... a6 {[%clk
0:01:38.4]} 13. Bg5 {[%clk 0:00:27.9]} 13... Qe8 {[%clk 0:01:21.3]} 14. cxb4
{[%clk 0:00:22.5]} 14... Ra7 {[%clk 0:01:20.4]} 15. Qxa7 {[%clk 0:00:22.8]}
15... Nxa7 {[%clk 0:01:20.2]} 16. a3 {[%clk 0:00:23.5]} 16... Bg4 {[%clk
0:01:19]} 17. Rac1 {[%clk 0:00:20.8]} 17... Qb8 {[%clk 0:01:11.3]} 18. Rc3
{[%clk 0:00:19.6]} 18... Qb5+ {[%clk 0:01:09.7]} 19. Kd2 {[%clk 0:00:19.6]}
19... Bxf3 {[%clk 0:01:05.1]} 20. g3 {[%clk 0:00:19.5]} 0-1

[Event "Late-Titled-Tuesday-Blitz-February-27-2024"]
[Site "Chess.com"]
[Date "2024.02.27"]
[Round "7"]
[White "lucasmito"]
[Black "dosto07"]
[Result "1/2-1/2"]
[WhiteElo "2819"]
[BlackElo "2516"]
[TimeControl "180+1"]
[EndTime "15:14:55 PST"]
[Termination "Game drawn by repetition"]

1. e4 {[%clk 0:02:59.5]} 1... e5 {[%clk 0:02:59.6]} 2. Nf3 {[%clk 0:02:54.1]}
2... Nc6 {[%clk 0:03:00]} 3. d4 {[%clk 0:02:50.8]} 3... exd4 {[%clk 0:02:59.9]}
4. Bc4 {[%clk 0:02:47.8]} 4... Bc5 {[%clk 0:02:58.6]} 5. c3 {[%clk 0:02:47.7]}
5... d6 {[%clk 0:02:58.4]} 6. cxd4 {[%clk 0:02:47.8]} 6... Bb6 {[%clk 0:02:59]}
7. h3 {[%clk 0:02:47.3]} 7... Nf6 {[%clk 0:02:59.2]} 8. Nc3 {[%clk 0:02:47.7]}
8... O-O {[%clk 0:02:59.3]} 9. O-O {[%clk 0:02:48.4]} 9... Nxe4 {[%clk
0:02:59.6]} 10. Nxe4 {[%clk 0:02:31.9]} 10... d5 {[%clk 0:02:59.8]} 11. Bg5
{[%clk 0:02:32.5]} 11... Qd7 {[%clk 0:02:58.9]} 12. Nf6+ {[%clk 0:02:20.8]}
12... gxf6 {[%clk 0:02:58.4]} 13. Bxf6 {[%clk 0:02:21.7]} 13... Qf5 {[%clk
0:02:42.3]} 14. Bg5 {[%clk 0:01:49]} 14... dxc4 {[%clk 0:02:41.7]} 15. Qd2
{[%clk 0:01:44.9]} 15... Nxd4 {[%clk 0:02:34.7]} 16. Nxd4 {[%clk 0:01:40]} 16...
Bxd4 {[%clk 0:02:34.7]} 17. Rae1 {[%clk 0:01:23.2]} 17... c5 {[%clk 0:02:09.1]}
18. Bh6 {[%clk 0:01:16.3]} 18... Be6 {[%clk 0:02:02.7]} 19. Re3 {[%clk
0:01:07.8]} 19... Kh8 {[%clk 0:01:58]} 20. Rf3 {[%clk 0:01:06.9]} 20... Qg6
{[%clk 0:01:54]} 21. Bxf8 {[%clk 0:01:04.7]} 21... Rxf8 {[%clk 0:01:53.3]} 22.
Kh1 {[%clk 0:01:04.6]} 22... Rg8 {[%clk 0:01:38.2]} 23. Rg3 {[%clk 0:01:04.1]}
23... Qf6 {[%clk 0:01:37.6]} 24. Rxg8+ {[%clk 0:01:03.9]} 24... Kxg8 {[%clk
0:01:38.2]} 25. f4 {[%clk 0:01:00.9]} 25... Bd5 {[%clk 0:01:36.3]} 26. Kh2
{[%clk 0:01:00]} 26... Be4 {[%clk 0:01:29.1]} 27. Qe2 {[%clk 0:00:57.2]} 27...
Qe6 {[%clk 0:01:24.8]} 28. Re1 {[%clk 0:00:49]} 28... f5 {[%clk 0:01:24.8]} 29.
Qh5 {[%clk 0:00:28.1]} 29... Qg6 {[%clk 0:01:22.7]} 30. Qh4 {[%clk 0:00:28.4]}
30... Qf6 {[%clk 0:01:18.5]} 31. Qh5 {[%clk 0:00:28.3]} 31... Qg6 {[%clk
0:01:15.3]} 32. Qh4 {[%clk 0:00:28.7]} 32... Bf6 {[%clk 0:01:14.5]} 33. Qf2
{[%clk 0:00:28.9]} 33... Bd4 {[%clk 0:01:13.6]} 34. Qh4 {[%clk 0:00:29]} 1/2-1/2

[Event "Late-Titled-Tuesday-Blitz-February-27-2024"]
[Site "Chess.com"]
[Date "2024.02.27"]
[Round "7"]
[White "Eeleyah"]
[Black "GlavkonVVS"]
[Result "0-1"]
[WhiteElo "2344"]
[BlackElo "2528"]
[TimeControl "180+1"]
[EndTime "15:15:02 PST"]
[Termination "GlavkonVVS won by resignation"]

1. d4 {[%clk 0:03:00.9]} 1... Nf6 {[%clk 0:02:59.7]} 2. c4 {[%clk 0:03:00.7]}
2... c5 {[%clk 0:02:59.9]} 3. d5 {[%clk 0:03:00.2]} 3... e6 {[%clk 0:03:00.2]}
4. Nc3 {[%clk 0:02:58.8]} 4... exd5 {[%clk 0:03:00.5]} 5. cxd5 {[%clk
0:02:59.7]} 5... d6 {[%clk 0:03:00.9]} 6. Nf3 {[%clk 0:02:59.7]} 6... g6 {[%clk
0:03:01.4]} 7. Nd2 {[%clk 0:03:00.3]} 7... Bg7 {[%clk 0:03:02]} 8. e4 {[%clk
0:03:00.7]} 8... O-O {[%clk 0:03:01.9]} 9. Be2 {[%clk 0:03:01.3]} 9... a6 {[%clk
0:03:01.3]} 10. a4 {[%clk 0:03:00.5]} 10... Re8 {[%clk 0:03:01.8]} 11. O-O
{[%clk 0:03:00.3]} 11... Nbd7 {[%clk 0:03:02]} 12. Ra3 {[%clk 0:02:58.7]} 12...
Rb8 {[%clk 0:03:01.8]} 13. h3 {[%clk 0:02:23.2]} 13... Qc7 {[%clk 0:02:56.3]}
14. f4 {[%clk 0:02:19.7]} 14... c4 {[%clk 0:02:54.6]} 15. Bxc4 {[%clk
0:01:56.2]} 15... b5 {[%clk 0:02:43.6]} 16. axb5 {[%clk 0:01:44.6]} 16... axb5
{[%clk 0:02:43.8]} 17. Nxb5 {[%clk 0:00:49.8]} 17... Rxb5 {[%clk 0:02:42.9]} 18.
Bxb5 {[%clk 0:00:50.7]} 18... Qc5+ {[%clk 0:02:42.5]} 19. Kh1 {[%clk 0:00:51.6]}
19... Qxb5 {[%clk 0:02:42.8]} 20. Rb3 {[%clk 0:00:44.6]} 20... Qa6 {[%clk
0:02:37.9]} 21. Ra3 {[%clk 0:00:44.6]} 21... Qb5 {[%clk 0:02:35.6]} 22. Rb3
{[%clk 0:00:44.9]} 22... Qa4 {[%clk 0:02:35.7]} 23. Qf3 {[%clk 0:00:34.2]} 23...
Nxe4 {[%clk 0:02:30]} 24. Ra3 {[%clk 0:00:28.3]} 24... Nxd2 {[%clk 0:02:24.1]}
25. Bxd2 {[%clk 0:00:29.2]} 25... Qc2 {[%clk 0:02:17.6]} 26. Bc3 {[%clk
0:00:26.1]} 26... Nc5 {[%clk 0:02:13.5]} 27. Bxg7 {[%clk 0:00:24.9]} 27... Kxg7
{[%clk 0:02:13.7]} 28. b4 {[%clk 0:00:24.2]} 28... Ne4 {[%clk 0:02:04.8]} 29.
Re3 {[%clk 0:00:23.7]} 29... Nd2 {[%clk 0:01:44.2]} 30. Rxe8 {[%clk 0:00:21.7]}
30... Nxf3 {[%clk 0:01:43.7]} 31. Rxf3 {[%clk 0:00:21.7]} 31... Bb7 {[%clk
0:01:41.3]} 32. Re1 {[%clk 0:00:09.9]} 32... Bxd5 {[%clk 0:01:40.8]} 33. Rg3
{[%clk 0:00:10.4]} 33... Qf2 {[%clk 0:01:40.6]} 34. Ree3 {[%clk 0:00:09.8]}
34... Bxg2+ {[%clk 0:01:38.4]} 35. Kh2 {[%clk 0:00:09.1]} 35... Bf3+ {[%clk
0:01:36.5]} 0-1

[Event "Late-Titled-Tuesday-Blitz-February-27-2024"]
[Site "Chess.com"]
[Date "2024.02.27"]
[Round "7"]
[White "MITerryble"]
[Black "Arystanner"]
[Result "1-0"]
[WhiteElo "3022"]
[BlackElo "2793"]
[TimeControl "180+1"]
[EndTime "15:15:18 PST"]
[Termination "MITerryble won by resignation"]

1. d4 {[%clk 0:03:00.9]} 1... d5 {[%clk 0:02:57.3]} 2. Nf3 {[%clk 0:02:59.6]}
2... e6 {[%clk 0:02:56.7]} 3. c4 {[%clk 0:03:00.2]} 3... c5 {[%clk 0:02:57.2]}
4. dxc5 {[%clk 0:03:00.3]} 4... Bxc5 {[%clk 0:02:56.8]} 5. e3 {[%clk 0:03:01.2]}
5... Nf6 {[%clk 0:02:56.7]} 6. a3 {[%clk 0:03:01.7]} 6... O-O {[%clk 0:02:54.3]}
7. b4 {[%clk 0:03:01.5]} 7... Be7 {[%clk 0:02:54.5]} 8. Bb2 {[%clk 0:03:01.7]}
8... a5 {[%clk 0:02:54.9]} 9. b5 {[%clk 0:03:01]} 9... Nbd7 {[%clk 0:02:54.6]}
10. Nbd2 {[%clk 0:03:01.2]} 10... Nc5 {[%clk 0:02:54]} 11. Be2 {[%clk
0:03:01.1]} 11... b6 {[%clk 0:02:54.5]} 12. cxd5 {[%clk 0:03:01.1]} 12... Nxd5
{[%clk 0:02:52]} 13. Nc4 {[%clk 0:03:01.6]} 13... Bb7 {[%clk 0:02:51.1]} 14. O-O
{[%clk 0:03:01.5]} 14... Bf6 {[%clk 0:02:51.2]} 15. Nd4 {[%clk 0:02:56.6]} 15...
Rc8 {[%clk 0:02:48.8]} 16. Rc1 {[%clk 0:02:56.3]} 16... Qe7 {[%clk 0:02:31.9]}
17. Bf3 {[%clk 0:02:53.9]} 17... Rcd8 {[%clk 0:02:13.9]} 18. Bxd5 {[%clk
0:02:44.8]} 18... Bxd5 {[%clk 0:02:08.2]} 19. Nxb6 {[%clk 0:02:42.1]} 19... Bxg2
{[%clk 0:01:56.6]} 20. Kxg2 {[%clk 0:02:43]} 20... Qb7+ {[%clk 0:01:56.2]} 21.
Qf3 {[%clk 0:02:43.6]} 21... Qxb6 {[%clk 0:01:56.8]} 22. Rfd1 {[%clk 0:02:44]}
22... e5 {[%clk 0:01:53.8]} 23. Qc6 {[%clk 0:02:40.3]} 23... Qb8 {[%clk
0:01:25.6]} 24. Qxc5 {[%clk 0:02:16.3]} 24... exd4 {[%clk 0:01:24.5]} 25. Bxd4
{[%clk 0:02:17.2]} 25... Bxd4 {[%clk 0:01:20]} 26. exd4 {[%clk 0:02:09.2]} 26...
Qf4 {[%clk 0:01:07]} 27. Qe5 {[%clk 0:02:07.4]} 27... Qg4+ {[%clk 0:01:06.9]}
28. Qg3 {[%clk 0:02:07.7]} 28... Rxd4 {[%clk 0:01:05.1]} 29. Qxg4 {[%clk
0:02:03.1]} 29... Rxg4+ {[%clk 0:01:05.8]} 30. Kf3 {[%clk 0:02:03.7]} 30... Ra4
{[%clk 0:01:05.6]} 31. Rc3 {[%clk 0:02:02.5]} 31... Rb8 {[%clk 0:01:06.3]} 32.
b6 {[%clk 0:01:55.9]} 32... g5 {[%clk 0:01:04.4]} 33. Rb1 {[%clk 0:01:55.2]}
33... Rd4 {[%clk 0:00:19.8]} 34. b7 {[%clk 0:01:55.1]} 34... Rdd8 {[%clk
0:00:20.2]} 35. Rc5 {[%clk 0:01:54]} 35... Kf8 {[%clk 0:00:17.4]} 36. Rxa5
{[%clk 0:01:52.8]} 36... h6 {[%clk 0:00:17.1]} 37. Rc5 {[%clk 0:01:48.8]} 37...
Ke7 {[%clk 0:00:15.7]} 38. a4 {[%clk 0:01:49]} 38... Rd7 {[%clk 0:00:14.2]} 39.
Rcb5 {[%clk 0:01:47]} 39... Rd6 {[%clk 0:00:13.4]} 40. Rb6 {[%clk 0:01:38.2]}
40... Rd4 {[%clk 0:00:11.5]} 41. R1b4 {[%clk 0:01:38]} 41... Rd3+ {[%clk
0:00:11.4]} 42. Kg4 {[%clk 0:01:36.5]} 42... Ra3 {[%clk 0:00:12.3]} 43. Rxh6
{[%clk 0:01:34.6]} 1-0

[Event "Late-Titled-Tuesday-Blitz-February-27-2024"]
[Site "Chess.com"]
[Date "2024.02.27"]
[Round "7"]
[White "Nick12772"]
[Black "EsmeraldasAnderson03"]
[Result "0-1"]
[WhiteElo "2380"]
[BlackElo "2518"]
[TimeControl "180+1"]
[EndTime "15:15:21 PST"]
[Termination "EsmeraldasAnderson03 won by resignation"]

1. Nf3 {[%clk 0:03:00.9]} 1... d5 {[%clk 0:02:51.4]} 2. g3 {[%clk 0:03:00.4]}
2... Nf6 {[%clk 0:02:51.5]} 3. Bg2 {[%clk 0:03:00.7]} 3... c5 {[%clk 0:02:52.4]}
4. O-O {[%clk 0:03:01.1]} 4... h6 {[%clk 0:02:52.7]} 5. d4 {[%clk 0:03:01.1]}
5... cxd4 {[%clk 0:02:53.6]} 6. Nxd4 {[%clk 0:03:01.3]} 6... e5 {[%clk
0:02:54.3]} 7. Nf3 {[%clk 0:03:01.7]} 7... Nc6 {[%clk 0:02:54.8]} 8. c4 {[%clk
0:03:01.5]} 8... d4 {[%clk 0:02:53.4]} 9. e3 {[%clk 0:02:58.5]} 9... Be6 {[%clk
0:02:53.3]} 10. exd4 {[%clk 0:02:55.2]} 10... exd4 {[%clk 0:02:54.2]} 11. Qb3
{[%clk 0:02:46.7]} 11... Qd7 {[%clk 0:02:48]} 12. Rd1 {[%clk 0:02:35.1]} 12...
Bc5 {[%clk 0:02:40.2]} 13. Qb5 {[%clk 0:02:31.9]} 13... Bb6 {[%clk 0:02:33]} 14.
c5 {[%clk 0:02:31.7]} 14... Bd8 {[%clk 0:02:26.4]} 15. Be3 {[%clk 0:02:22.2]}
15... O-O {[%clk 0:02:21.5]} 16. Nxd4 {[%clk 0:02:15.9]} 16... Nxd4 {[%clk
0:02:20.4]} 17. Qxd7 {[%clk 0:02:16.6]} 17... Ne2+ {[%clk 0:02:17.5]} 18. Kf1
{[%clk 0:02:14.7]} 18... Bxd7 {[%clk 0:02:18]} 19. Kxe2 {[%clk 0:02:12.1]} 19...
Bb5+ {[%clk 0:02:16.9]} 20. Kd2 {[%clk 0:01:51.1]} 20... Ng4 {[%clk 0:02:12]}
21. Nc3 {[%clk 0:01:43]} 21... Ba5 {[%clk 0:02:10.5]} 22. h3 {[%clk 0:01:29.9]}
22... Nxe3 {[%clk 0:02:10.1]} 23. Kxe3 {[%clk 0:01:28.2]} 23... Rfe8+ {[%clk
0:02:09]} 24. Kd2 {[%clk 0:01:05]} 24... Re2+ {[%clk 0:02:03.9]} 25. Kc1 {[%clk
0:01:03.6]} 25... Bxc3 {[%clk 0:01:37.1]} 26. bxc3 {[%clk 0:01:04.5]} 26... Rc8
{[%clk 0:01:37.1]} 27. Rd2 {[%clk 0:01:00.8]} 27... Re1+ {[%clk 0:01:33.5]} 28.
Kb2 {[%clk 0:01:00.4]} 28... Rxa1 {[%clk 0:01:30.9]} 29. Kxa1 {[%clk 0:01:01.3]}
29... Rxc5 {[%clk 0:01:31.2]} 30. Rd5 {[%clk 0:00:48]} 30... Rxd5 {[%clk
0:01:23.4]} 31. Bxd5 {[%clk 0:00:48.9]} 31... b6 {[%clk 0:01:23.4]} 32. h4
{[%clk 0:00:46.3]} 32... Kf8 {[%clk 0:01:23.9]} 33. Kb2 {[%clk 0:00:46.9]} 33...
f6 {[%clk 0:01:24.4]} 34. Kc2 {[%clk 0:00:38.9]} 34... Ke7 {[%clk 0:01:24.8]}
35. Kd2 {[%clk 0:00:36.7]} 35... Kd6 {[%clk 0:01:25.3]} 36. Bb3 {[%clk
0:00:37.3]} 36... Kc5 {[%clk 0:01:18.9]} 37. Ke3 {[%clk 0:00:37.4]} 37... a5
{[%clk 0:01:15.3]} 38. Kf4 {[%clk 0:00:34.8]} 38... a4 {[%clk 0:01:15.6]} 39.
Bf7 {[%clk 0:00:30.8]} 39... Bc4 {[%clk 0:01:15.5]} 40. Be8 {[%clk 0:00:29.4]}
40... a3 {[%clk 0:01:14.8]} 41. Kf5 {[%clk 0:00:24.6]} 41... Bxa2 {[%clk
0:01:15.1]} 42. Kg6 {[%clk 0:00:24.6]} 42... Bc4 {[%clk 0:01:09.5]} 0-1

[Event "Late-Titled-Tuesday-Blitz-February-27-2024"]
[Site "Chess.com"]
[Date "2024.02.27"]
[Round "7"]
[White "pfalcon1949"]
[Black "CURRUTACO59"]
[Result "0-1"]
[WhiteElo "1911"]
[BlackElo "2250"]
[TimeControl "180+1"]
[EndTime "15:15:25 PST"]
[Termination "CURRUTACO59 won by resignation"]

1. e4 {[%clk 0:03:00.9]} 1... e5 {[%clk 0:02:58]} 2. Nf3 {[%clk 0:03:00.7]} 2...
Nc6 {[%clk 0:02:57.2]} 3. Nc3 {[%clk 0:03:00.7]} 3... Bb4 {[%clk 0:02:55.8]} 4.
Nd5 {[%clk 0:02:55]} 4... Ba5 {[%clk 0:02:55.8]} 5. c3 {[%clk 0:02:53.5]} 5...
Nf6 {[%clk 0:02:55.8]} 6. d3 {[%clk 0:02:46.7]} 6... h6 {[%clk 0:02:49.8]} 7.
Be2 {[%clk 0:02:46.5]} 7... d6 {[%clk 0:02:47.4]} 8. O-O {[%clk 0:02:45.1]} 8...
Nxd5 {[%clk 0:02:43.1]} 9. exd5 {[%clk 0:02:44.3]} 9... Ne7 {[%clk 0:02:42.5]}
10. c4 {[%clk 0:02:35.5]} 10... O-O {[%clk 0:02:42]} 11. a3 {[%clk 0:02:23.7]}
11... Bb6 {[%clk 0:02:41.9]} 12. b4 {[%clk 0:02:22.6]} 12... a5 {[%clk
0:02:32.8]} 13. Be3 {[%clk 0:02:20.9]} 13... f5 {[%clk 0:01:52.3]} 14. Qd2
{[%clk 0:02:10.3]} 14... Bxe3 {[%clk 0:01:42.4]} 15. fxe3 {[%clk 0:02:06.7]}
15... axb4 {[%clk 0:01:27]} 16. axb4 {[%clk 0:02:05.1]} 16... Rxa1 {[%clk
0:01:25.8]} 17. Rxa1 {[%clk 0:02:04.6]} 17... Ng6 {[%clk 0:01:24.1]} 18. Rf1
{[%clk 0:01:58.9]} 18... f4 {[%clk 0:01:23.5]} 19. e4 {[%clk 0:01:40.5]} 19...
b6 {[%clk 0:01:22.3]} 20. d4 {[%clk 0:01:39.2]} 20... Bg4 {[%clk 0:01:17.3]} 21.
b5 {[%clk 0:01:33.9]} 21... Bxf3 {[%clk 0:01:15.3]} 22. Bxf3 {[%clk 0:01:33.8]}
22... exd4 {[%clk 0:01:11.6]} 23. Qxd4 {[%clk 0:01:32.7]} 23... Ne5 {[%clk
0:01:07.5]} 24. Qc3 {[%clk 0:01:23.6]} 24... Qf6 {[%clk 0:01:06.9]} 25. Rc1
{[%clk 0:01:15.4]} 25... g5 {[%clk 0:01:01.8]} 26. h3 {[%clk 0:01:14.3]} 26...
Ra8 {[%clk 0:00:51.2]} 27. Bg4 {[%clk 0:01:03.1]} 27... Ra4 {[%clk 0:00:39.6]}
28. Be6+ {[%clk 0:01:00.1]} 28... Kg7 {[%clk 0:00:39.4]} 29. c5 {[%clk
0:00:56.8]} 29... bxc5 {[%clk 0:00:21.4]} 30. Ra1 {[%clk 0:00:56.2]} 30... Rxa1+
{[%clk 0:00:19.7]} 31. Qxa1 {[%clk 0:00:56]} 31... Nf3+ {[%clk 0:00:20]} 32.
gxf3 {[%clk 0:00:52.5]} 32... Qxa1+ {[%clk 0:00:20.9]} 0-1